bitfinex-derivatives/quotes_SOLF0:USTF0_20241206
["timestamp","ask_amount","ask_price","bid_price","bid_amount"]
[1733463843776,5.77676547,239.16,239.06,7.86676547]
[1733463843972,3.445,239.17,239.03,4.7023]
[1733463843973,5.77676547,239.12,239.03,4.7023]
[1733463844177,2.0899,239.09,239.03,11.01152974]
[1733463844373,2.0899,239.09,239.03,6.35882974]
[1733463845179,2.0899,239.09,239.03,8.44922974]
[1733463845884,2.0899,239.09,239.03,6.30922974]
[1733463846477,2.0899,239.09,239.03,4.21882974]
[1733463846682,2.0899,239.09,239.04,2.0903]
[1733463847089,2.0899,239.09,239.05,4.12837093]
[1733463849193,2.0898,239.1,239.05,2.0902]
[1733463849491,2.14,239.12,239.05,2.0902]
[1733463849688,7.91676547,239.12,239.05,2.0902]
[1733463850595,2.0898,239.1,239.05,2.0902]
[1733463851093,2.0898,239.1,239.04,6.27119862]
[1733463851296,2.0898,239.1,239.04,2.0903]
[1733463851693,2.0898,239.1,239.05,2.0902]
[1733463851997,2.0898,239.1,239.05,6.28992208]
[1733463852293,2.0898,239.1,239.05,2.0902]
[1733463852696,2.0898,239.1,239.05,6.2803012]
[1733463852898,2.0898,239.1,239.05,2.0902]
[1733463853391,2.0898,239.1,239.05,6.23387001]
[1733463853590,7.91676547,239.12,239.05,4.14367001]
[1733463853591,2.0897,239.12,239.05,4.14367001]
[1733463853787,2.0897,239.12,239.04,5.77676547]
[1733463854397,2.0897,239.12,239.04,9.91541589]
[1733463855198,5.77676547,239.11,239.04,4.13865042]
[1733463855501,5.77676547,239.11,238.99,2.14]
[1733463855502,5.77676547,239.11,239.0,5.77676547]
[1733463855697,5.77676547,239.11,239.0,9.95215793]
[1733463855894,7.86656547,239.11,239.04,2.0903]
[1733463856095,5.77676547,239.11,239.0,9.95215793]
[1733463858301,2.14,239.13,239.0,9.95215793]
[1733463858302,7.86666547,239.09,239.0,9.95215793]
[1733463859206,5.77676547,239.09,239.0,4.17539246]
[1733463859400,2.5991,239.17,239.0,4.17539246]
[1733463859401,2.0903,239.04,239.0,4.17539246]
[1733463859903,9.98676547,239.08,239.02,2.0904]
[1733463860099,7.89676547,239.1,239.01,5.77676547]
[1733463860304,5.77676547,239.1,239.01,5.77676547]
[1733463860705,5.77676547,239.1,239.05,2.0902]
[1733463860906,2.5991,239.17,239.03,5.77676547]
[1733463861106,5.77676547,239.12,239.03,5.77676547]
[1733463861308,7.86636547,239.12,239.06,2.0901]
[1733463861513,7.86636547,239.12,239.07,4.18243544]
[1733463862304,7.86636547,239.12,239.07,6.27243544]
[1733463862502,7.86636547,239.12,239.07,2.09]
[1733463862902,7.86636547,239.12,239.03,5.77676547]
[1733463862903,5.77676547,239.12,239.08,4.0929889]
[1733463863198,7.86626547,239.14,239.05,5.77676547]
[1733463863803,7.86626547,239.14,239.09,2.0898]
[1733463864003,7.86626547,239.14,239.09,6.19073645]
[1733463865005,5.77676547,239.12,239.09,6.19073645]
[1733463865209,5.77676547,239.12,239.09,4.10093645]
[1733463865510,5.77676547,239.12,239.08,2.0899]
[1733463865813,5.77676547,239.12,239.09,4.25559603]
[1733463866204,5.77676547,239.12,239.09,6.34549603]
[1733463866405,5.77676547,239.12,239.09,4.25559603]
[1733463866610,5.77676547,239.12,239.03,7.08106547]
[1733463866908,5.77676547,239.12,239.07,2.0899]
[1733463867110,5.77676547,239.12,239.07,4.28236604]
[1733463867311,5.77676547,239.12,239.03,7.08106547]
[1733463868614,5.77676547,239.12,239.08,2.0899]
[1733463868809,5.77676547,239.12,239.09,4.13614502]
[1733463869110,7.86636547,239.12,239.09,4.13614502]
[1733463869311,7.86636547,239.12,239.07,2.09]
[1733463869312,5.77676547,239.12,239.03,1.3043]
[1733463869503,5.77676547,239.12,239.03,3.4243]
[1733463870509,5.77676547,239.08,239.03,5.5146]
[1733463870705,5.77676547,239.08,239.03,3.3946]
[1733463870907,5.77676547,239.08,239.01,4.11800661]
[1733463871105,5.77676547,239.08,239.03,2.0904]
[1733463871106,2.09,239.08,239.03,2.0904]
[1733463871609,2.09,239.08,239.01,10.01454698]
[1733463871803,9.98656547,239.1,239.02,2.0904]
[1733463872007,9.98656547,239.1,239.03,4.15273405]
[1733463872008,4.2098,239.1,239.03,4.15273405]
[1733463872209,2.12,239.1,239.03,4.15273405]
[1733463872407,5.77676547,239.09,239.03,4.15273405]
[1733463873010,2.09,239.07,239.01,5.77676547]
[1733463873403,2.09,239.07,238.99,5.77676547]
[1733463873608,2.09,239.07,238.99,10.01818488]
[1733463874604,2.09,239.07,239.01,2.0905]
[1733463875011,2.12,239.1,239.01,7.86726547]
[1733463875206,2.09,239.08,239.01,7.86726547]
[1733463875909,2.0899,239.09,239.02,2.0904]
[1733463876208,7.89676547,239.1,239.01,5.77676547]
[1733463877610,2.0901,239.07,238.99,12.10888488]
[1733463877911,5.77676547,239.08,238.99,7.86746547]
[1733463878310,2.0901,239.06,239.0,2.0906]
[1733463881415,2.09,239.07,239.0,2.0906]
[1733463882510,2.09,239.07,239.0,7.86736547]
[1733463882811,2.09,239.07,239.0,5.77676547]
[1733463883116,2.09,239.07,239.01,2.0905]
[1733463884317,2.0901,239.06,239.01,2.0905]
[1733463885710,2.0901,239.06,239.0,7.86736547]
[1733463886407,2.0901,239.06,239.0,5.77676547]
[1733463887813,2.0901,239.06,239.0,7.86736547]
[1733463889615,2.0901,239.06,239.0,5.77676547]
[1733463889813,2.0901,239.06,239.01,2.0905]
[1733463894516,2.5826,239.17,239.02,5.77676547]
[1733463894818,2.5826,239.17,239.05,5.77676547]
[1733463894819,5.77676547,239.15,239.05,5.77676547]
[1733463895014,10.34060775,239.14,239.05,9.96809467]
[1733463895220,10.34060775,239.14,239.07,5.77676547]
[1733463895410,5.77676547,239.15,239.07,5.77676547]
[1733463896012,5.77676547,239.15,239.07,9.98901575]
[1733463896618,2.0895,239.13,239.08,2.0899]
[1733463897911,2.0895,239.13,239.08,6.29613617]
[1733463899512,2.0895,239.13,239.08,4.20623617]
[1733463899713,2.0893,239.16,239.08,5.77676547]
[1733463899922,7.85676547,239.17,239.08,9.95079719]
[1733463900719,2.0893,239.15,239.1,2.0898]
[1733463901821,1.3318,239.23,239.12,5.77676547]
[1733463902120,10.34747154,239.22,239.12,7.85676547]
[1733463902324,1.2574,239.27,239.12,7.85676547]
[1733463902325,5.77676547,239.21,239.12,7.85676547]
[1733463902521,2.0889,239.2,239.15,2.0893]
[1733463903325,2.0889,239.2,239.15,6.22802637]
[1733463903623,2.0891,239.18,239.13,1.2906]
[1733463903822,2.08,239.25,239.08,4.17403172]
[1733463903823,5.77676547,239.17,239.08,4.17403172]
[1733463904016,5.77676547,239.17,239.08,7.85676547]
[1733463904221,5.77676547,239.17,239.08,12.12443514]
[1733463904421,2.0894,239.14,239.08,10.04443514]
[1733463904621,2.0894,239.14,239.08,4.26766967]
[1733463904821,2.0894,239.14,239.07,7.85676547]
[1733463905022,2.0897,239.11,239.05,1.2906]
[1733463905217,2.0897,239.11,239.05,3.3706]
[1733463905925,5.77676547,239.13,239.05,5.57667021]
[1733463905926,2.0898,239.1,239.05,5.57667021]
[1733463906121,2.0898,239.1,239.05,1.2906]
[1733463906316,5.77676547,239.13,239.06,2.0901]
[1733463906518,5.77676547,239.13,239.07,4.20075864]
[1733463906918,284.7906588,239.38,239.09,5.77676547]
[1733463906919,2.0889,239.21,239.09,5.77676547]
[1733463907122,5.77676547,239.22,239.17,2.0891]
[1733463907316,5.77676547,239.22,239.17,4.13087564]
[1733463907516,5.77676547,239.22,239.15,5.77676547]
[1733463907721,7.86546547,239.22,239.15,5.77676547]
[1733463907915,5.77676547,239.22,239.15,5.77676547]
[1733463908128,5.77676547,239.22,239.15,9.86204461]
[1733463909620,2.5379,239.36,239.15,9.86204461]
[1733463909824,5.77676547,239.25,239.15,9.86204461]
[1733463910728,7.86526547,239.25,239.2,2.0889]
[1733463911426,4.1683,239.27,239.2,2.0889]
[1733463911627,5.77676547,239.25,239.2,2.0889]
[1733463911830,5.77676547,239.25,239.21,4.12963803]
[1733463912027,5.77676547,239.25,239.21,6.21843803]
[1733463913327,5.77676547,239.25,239.21,4.12963803]
[1733463913528,5.77676547,239.25,239.17,2.08]
[1733463914731,5.77676547,239.25,239.2,2.0889]
[1733463915033,2.0887,239.23,239.17,2.08]
[1733463915228,7.86546547,239.23,239.17,2.08]
[1733463915427,2.08,239.24,239.13,2.5052]
[1733463915628,7.86596547,239.17,239.13,1.2352]
[1733463916024,7.86596547,239.17,239.13,4.16465439]
[1733463916231,5.77676547,239.17,239.12,2.0896]
[1733463916427,7.86586547,239.19,239.1,2.08]
[1733463916628,2.08,239.22,239.11,5.77676547]
[1733463916933,2.0889,239.21,239.13,5.77676547]
[1733463917131,7.85676547,239.22,239.13,9.86603742]
[1733463917338,9.94546547,239.22,239.13,9.86603742]
[1733463918474,5.77676547,239.2,239.13,4.08927195]
[1733463918668,5.77676547,239.2,239.11,5.77676547]
[1733463918956,5.77676547,239.2,239.1,2.08]
[1733463918957,7.85676547,239.22,239.13,5.77676547]
[1733463919160,7.85676547,239.22,239.16,2.0892]
[1733463919161,2.0888,239.21,239.16,2.0892]
[1733463920460,2.0889,239.2,239.15,2.0893]
[1733463922265,2.0888,239.21,239.15,2.0893]
[1733463923464,7.86566547,239.2,239.14,2.0894]
[1733463923958,7.86566547,239.2,239.13,4.16078612]
[1733463924156,2.5827,239.27,239.11,5.77676547]
[1733463924360,5.77676547,239.21,239.16,2.0892]
[1733463924854,2.0889,239.2,239.15,4.22943198]
[1733463925052,2.0889,239.2,239.11,5.77676547]
[1733463928651,5.77676547,239.21,239.11,5.77676547]
[1733463928953,5.77676547,239.21,239.15,2.0893]
[1733463929155,5.77676547,239.21,239.15,6.24824125]
[1733463929754,7.86556547,239.21,239.16,2.0892]
[1733463929956,5.77676547,239.23,239.15,4.19448418]
[1733463930248,5.77676547,239.23,239.13,5.77676547]
[1733463930852,5.77676547,239.27,239.19,5.77676547]
[1733463931054,3.4225,239.28,239.19,5.77676547]
[1733463931249,3.4225,239.28,239.2,4.24048091]
[1733463931455,3.4225,239.28,239.19,5.77676547]
[1733463931456,5.77676547,239.27,239.19,5.77676547]
[1733463931644,5.77676547,239.27,239.2,4.10374516]
[1733463931851,2.0885,239.25,239.2,6.19264516]
[1733463932146,5.77676547,239.25,239.2,4.10374516]
[1733463932347,5.77676547,239.25,239.17,7.85676547]
[1733463932548,5.77676547,239.23,239.15,1.2694]
[1733463932748,5.77676547,239.24,239.15,1.2694]
[1733463933154,5.77676547,239.24,239.16,5.77676547]
[1733463933653,2.0886,239.23,239.18,2.0891]
[1733463933855,5.77676547,239.24,239.16,5.77676547]
[1733463934756,7.86536547,239.24,239.19,2.089]
[1733463935646,2.0886,239.24,239.2,2.0889]
[1733463935848,2.0885,239.25,239.2,2.0889]
[1733463938154,5.77676547,239.26,239.18,5.77676547]
[1733463938351,5.77676547,239.26,239.21,2.0888]
[1733463938552,1.3425,239.28,239.15,5.41461347]
[1733463938748,1.3425,239.28,239.2,5.77676547]
[1733463938956,2.0884,239.26,239.21,2.0888]
[1733463939156,2.0884,239.26,239.21,6.19251543]
[1733463939348,2.0886,239.24,239.21,4.10371543]
[1733463939749,5.77676547,239.27,239.18,5.77676547]
[1733463940657,7.86526547,239.25,239.2,2.0889]
[1733463941351,7.86526547,239.25,239.18,5.77676547]
[1733463941352,5.77676547,239.23,239.15,5.41461347]
[1733463941954,5.77676547,239.19,239.1,5.77676547]
[1733463942256,5.77676547,239.17,239.09,2.08]
[1733463942458,5.77676547,239.17,239.08,7.00506547]
[1733463942459,2.08,239.19,239.1,4.14242603]
[1733463942758,1.2562,239.23,239.12,5.77676547]
[1733463942961,1.2562,239.23,239.14,5.77676547]
[1733463942962,10.3410357,239.22,239.14,5.77676547]
[1733463943162,1.2562,239.23,239.14,5.77676547]
[1733463943355,10.34592832,239.22,239.14,5.77676547]
[1733463943560,1.2562,239.23,239.14,5.77676547]
[1733463943861,16.12310767,239.22,239.14,5.77676547]
[1733463944053,2.089,239.2,239.12,12.0357096]
[1733463944254,7.86576547,239.2,239.12,12.0357096]
[1733463944456,7.85676547,239.2,239.08,3.3083]
[1733463944660,2.0892,239.17,239.11,2.0897]
[1733463945267,7.85676547,239.2,239.1,9.8971634]
[1733463945556,2.0892,239.17,239.1,9.8971634]
[1733463945962,2.0893,239.16,239.1,11.9869634]
[1733463946463,2.08,239.2,239.1,9.8971634]
[1733463946665,5.77676547,239.18,239.1,9.8971634]
[1733463946862,10.3452313,239.17,239.1,4.12039793]
[1733463947159,5.77676547,239.18,239.07,2.08]
[1733463947362,2.0893,239.15,239.08,5.77676547]
[1733463948054,2.0893,239.15,239.1,2.0898]
[1733463954068,5.77676547,239.18,239.09,7.86656547]
[1733463954667,5.77676547,239.18,239.09,2.0898]
[1733463955160,2.0894,239.14,239.07,4.15360594]
[1733463955360,5.77676547,239.14,239.05,5.77676547]
[1733463955565,5.77676547,239.14,238.82,5.77002637]
[1733463955566,5.77676547,239.12,239.0,6.26396237]
[1733463955762,5.77676547,239.12,239.02,5.77676547]
[1733463955964,2.0899,239.08,239.03,2.0904]
[1733463957271,2.08,239.1,239.07,5.77676547]
[1733463957466,2.08,239.13,239.07,10.02518123]
[1733463957966,2.0896,239.12,239.07,12.11518123]
[1733463959768,2.0896,239.12,239.07,6.33841576]
[1733463959970,2.0896,239.12,239.07,12.11518123]
[1733463960368,2.08,239.13,239.07,10.02518123]
[1733463960670,2.08,239.13,239.08,2.0899]
[1733463961271,2.08,239.13,239.07,10.02518123]
[1733463961472,2.0894,239.15,239.1,2.0898]
[1733463961968,2.0892,239.16,239.1,2.0898]
[1733463962174,2.0892,239.16,239.1,6.31695288]
[1733463962476,2.08,239.18,239.1,6.31695288]
[1733463963772,2.0893,239.15,239.1,6.31695288]
[1733463965170,2.0894,239.15,239.1,4.22715288]
[1733463966575,2.0894,239.15,239.09,5.77676547]
[1733463966769,2.089,239.19,239.11,5.77676547]
[1733463966968,2.089,239.19,239.09,4.25409354]
[1733463966969,2.08,239.22,239.13,5.77676547]
[1733463967368,5.77676547,239.23,239.13,5.77676547]
[1733463967776,5.77676547,239.23,239.13,10.04842581]
[1733463968671,2.0888,239.21,239.15,2.0893]
[1733463971380,5.77676547,239.23,239.15,2.0893]
[1733463971679,2.08,239.24,239.15,5.77676547]
[1733463971879,7.85676547,239.24,239.15,5.77676547]
[1733463972277,1.3471,239.4,239.15,5.77676547]
[1733463972478,5.77676547,239.25,239.17,2.0891]
[1733463972672,5.77676547,239.25,239.16,2.08]
[1733463973372,5.77676547,239.25,239.18,2.089]
[1733463973373,7.86526547,239.25,239.18,2.089]
[1733463973572,7.86526547,239.25,239.17,5.77676547]
[1733463973573,5.77676547,239.25,239.17,5.77676547]
[1733463975876,2.0886,239.23,239.18,2.0891]
[1733463976081,2.0886,239.23,239.19,4.21325582]
[1733463982182,2.0886,239.23,239.17,7.86596547]
[1733463982476,2.0886,239.23,239.17,5.77676547]
[1733463983576,2.6363,239.39,239.22,5.77676547]
[1733463983882,5.77676547,239.37,239.28,5.77676547]
[1733463984087,10.35772685,239.36,239.29,2.08]
[1733463984383,10.35772685,239.36,239.22,4.15848738]
[1733463984384,5.77676547,239.31,239.22,6.23848738]
[1733463984586,5.77676547,239.31,239.22,2.08]
[1733463985177,5.77676547,239.31,239.22,6.323305]
[1733463985382,5.77676547,239.31,239.22,2.08]
[1733463985687,2.0881,239.29,239.23,2.0886]
[1733463986187,2.0881,239.29,239.23,7.86536547]
[1733463986582,1.2925,239.38,239.25,5.77676547]
[1733463986783,10.35307443,239.37,239.29,5.77676547]
[1733463986979,10.35307443,239.37,239.29,9.8871537]
[1733463987184,5.77676547,239.38,239.29,9.8871537]
[1733463987380,10.34992309,239.37,239.29,9.8871537]
[1733463987581,2.0875,239.37,239.3,2.088]
[1733463987788,5.77676547,239.38,239.3,2.088]
[1733463988693,5.77676547,239.38,239.29,9.8871537]
[1733463988891,5.77676547,239.38,239.31,2.0879]
[1733463989191,7.86446547,239.34,239.24,1.337]
[1733463989389,2.6363,239.39,239.25,4.1684]
[1733463989390,5.77676547,239.32,239.25,4.1684]
[1733463990290,2.088,239.31,239.26,2.0884]
[1733463990886,5.77676547,239.32,239.23,1.358]
[1733463991083,5.77676547,239.3,239.21,5.77676547]
[1733463991289,5.77676547,239.3,239.21,7.85676547]
[1733463991486,5.77676547,239.29,239.21,2.08]
[1733463991692,5.77676547,239.27,239.11,4.26677697]
[1733463991990,5.77676547,239.25,239.17,5.77676547]
[1733463992191,5.77676547,239.25,239.17,9.98597239]
[1733463992592,5.77676547,239.23,239.13,7.11376547]
[1733463992793,5.77676547,239.21,239.11,4.26677697]
[1733463992994,5.77676547,239.21,239.11,5.77676547]
[1733463993190,2.0894,239.15,239.09,11.38289783]
[1733463993393,2.0894,239.15,239.09,5.77676547]
[1733463993898,7.85676547,239.19,239.11,5.77676547]
[1733463994093,4.169,239.19,239.09,4.15904755]
[1733463994296,4.169,239.19,239.08,9.06581103]
[1733463994498,9.06581103,239.26,239.1,2.0897]
[1733463994499,2.0892,239.17,239.1,2.0897]
[1733463994696,2.0892,239.17,239.11,4.23522216]
[1733463995294,11.14581103,239.23,239.11,4.23522216]
[1733463995594,11.14581103,239.23,239.08,11.15571103]
[1733463995595,2.0893,239.16,239.08,11.15571103]
[1733463995800,2.0893,239.16,239.08,9.06581103]
[1733463996000,2.0893,239.16,239.08,13.14965578]
[1733463996199,11.14581103,239.23,239.1,2.0898]
[1733463996200,2.0891,239.18,239.1,2.0898]
[1733463996495,11.14581103,239.23,239.1,2.0898]
[1733463996696,11.14581103,239.23,239.08,13.14965578]
[1733463996697,10.33312673,239.22,239.08,13.14965578]
[1733463996900,11.14581103,239.23,239.08,15.23955578]
[1733463997098,2.5918,239.21,239.08,15.23955578]
[1733463998396,2.0895,239.13,239.07,2.08]
[1733463998695,2.5918,239.21,239.05,15.91104598]
[1733463998696,2.08,239.18,239.05,15.91104598]
[1733463998892,2.08,239.18,239.05,11.73921103]
[1733463999098,2.0898,239.1,239.05,1.3097]
[1733463999293,2.08,239.18,239.05,1.3097]
[1733463999501,2.0896,239.12,239.05,4.28098179]
[1733463999801,2.0896,239.12,239.04,2.0903]
[1733464000197,2.0896,239.12,239.05,4.20236261]
[1733464000398,2.08,239.18,239.05,4.20236261]
[1733464000594,3.3476,239.2,239.08,9.06581103]
[1733464000901,2.08,239.2,239.08,9.06581103]
[1733464001497,2.089,239.19,239.12,2.0896]
[1733464002095,2.0891,239.18,239.1,2.0897]
[1733464002503,2.08,239.2,239.08,10.30371103]
[1733464002702,2.08,239.2,239.08,1.2379]
[1733464003002,2.08,239.2,239.06,4.17]
[1733464003003,9.06581103,239.19,239.06,2.08]
[1733464003195,9.06581103,239.19,239.02,11.14581103]
[1733464003497,9.06581103,239.16,239.01,2.0905]
[1733464003698,9.06581103,239.16,239.0,3.3537]
[1733464003699,2.08,239.15,239.0,12.41951103]
[1733464003895,2.08,239.15,239.03,9.06581103]
[1733464004098,4.6718,239.21,239.06,9.06581103]
[1733464004300,4.6718,239.21,239.09,9.06581103]
[1733464004502,2.089,239.19,239.11,2.0897]
[1733464004798,4.6718,239.21,239.11,6.30626159]
[1733464005004,4.6718,239.21,239.11,2.0897]
[1733464005202,2.0892,239.17,239.09,11.15561103]
[1733464005403,2.0892,239.17,239.09,13.17570365]
[1733464006603,2.0892,239.17,239.1,2.0898]
[1733464007502,2.08,239.21,239.09,13.17570365]
[1733464007799,2.08,239.21,239.13,2.0895]
[1733464008505,2.08,239.24,239.12,11.14581103]
[1733464008907,2.0889,239.2,239.12,9.06581103]
[1733464009106,2.0889,239.2,239.13,2.08]
[1733464009802,9.06581103,239.22,239.1,1.3211]
[1733464010302,9.06581103,239.22,239.07,4.11178129]
[1733464010303,2.0891,239.18,239.07,4.11178129]
[1733464010507,2.08,239.17,239.05,11.15601103]
[1733464010906,2.08,239.17,239.06,4.09038379]
[1733464011303,2.0897,239.11,239.05,9.06581103]
[1733464011604,2.08,239.17,239.04,2.08]
[1733464011605,2.08,239.17,239.04,4.1703]
[1733464011806,2.0897,239.11,239.04,4.1703]
[1733464013310,2.0898,239.1,239.04,4.1703]
[1733464014210,2.08,239.15,239.04,4.1703]
[1733464014511,9.06581103,239.12,238.97,2.0908]
[1733464014706,9.06581103,239.12,238.93,1.2755]
[1733464014707,2.0905,239.03,238.94,12.44711103]
[1733464014906,2.0905,239.03,238.95,1.04600492]
[1733464015113,2.08,239.05,238.95,6.31850203]
[1733464015412,2.0907,239.0,238.95,4.22750203]
[1733464015607,2.08,239.0,238.94,1.3013]
[1733464015914,2.08,239.0,238.89,1.2921]
[1733464016312,1.2323,239.08,238.71,2.08]
[1733464016313,10.41501103,238.99,238.71,2.08]
[1733464016504,10.41501103,238.99,238.84,9.06581103]
[1733464016505,2.091,238.96,238.84,9.06581103]
[1733464016711,2.091,238.96,238.84,13.33974154]
[1733464016712,4.171,238.96,238.84,13.33974154]
[1733464016910,4.171,238.96,238.87,2.0917]
[1733464017613,2.0912,238.94,238.85,2.0919]
[1733464018113,2.08,238.96,238.84,13.33974154]
[1733464018418,2.0914,238.92,238.84,13.33974154]
[1733464018713,2.08,238.91,238.84,4.27393051]
[1733464019014,4.1716,238.9,238.82,3.3339]
[1733464019214,2.08,238.9,238.81,1.3013]
[1733464020711,9.06581103,238.93,238.81,1.3013]
[1733464020911,1.2665,238.98,238.87,9.06581103]
[1733464021112,2.08,238.97,238.88,4.21828962]
[1733464021614,2.08,238.97,238.87,9.06581103]
[1733464022218,9.06581103,239.02,238.87,13.18611775]
[1733464022414,2.08,239.01,238.9,9.06581103]
[1733464023215,2.08,239.01,238.89,9.06581103]
[1733464023521,2.08,239.02,238.92,9.06581103]
[1733464023723,2.08,239.02,238.93,1.3573]
[1733464024018,2.08,239.03,238.93,1.3573]
[1733464024222,2.08,239.03,238.96,2.091]
[1733464024422,9.06581103,239.08,238.96,2.091]
[1733464024616,2.0902,239.05,238.96,2.091]
[1733464024821,9.06581103,239.08,238.97,4.09470288]
[1733464025119,2.08,239.07,238.97,4.09470288]
[1733464025525,9.06581103,239.08,238.97,4.09470288]
[1733464025721,9.06581103,239.08,238.93,1.3573]
[1733464025722,4.17,239.07,238.93,1.3573]
[1733464025918,2.08,239.07,238.93,1.3573]
[1733464027827,9.06581103,239.08,238.93,1.3573]
[1733464028023,1.2324,239.13,238.98,9.06581103]
[1733464028224,2.08,239.12,238.99,2.08]
[1733464028520,9.06581103,239.11,238.99,2.08]
[1733464028725,9.06581103,239.11,238.98,4.22563533]
[1733464028917,9.06581103,239.11,238.95,2.08]
[1733464029428,2.0902,239.05,238.98,2.0908]
[1733464029619,9.06581103,239.05,238.93,3.4373]
[1733464030722,2.0905,239.02,238.94,2.0911]
[1733464030918,2.0905,239.02,238.93,3.4373]
[1733464030919,9.06581103,239.05,238.93,3.4373]
[1733464031423,2.08,239.05,238.93,3.4373]
[1733464031624,2.08,239.05,238.94,1.04599489]
[1733464031827,2.09,239.08,239.01,2.0905]
[1733464032127,4.17,239.08,239.01,6.26554861]
[1733464032327,4.17,239.08,239.01,2.0905]
[1733464032931,4.17,239.08,239.01,6.29818907]
[1733464033226,4.17,239.08,239.01,2.0905]
[1733464034121,4.17,239.08,239.02,4.16085644]
[1733464034322,9.06581103,239.11,239.04,2.0903]
[1733464034523,2.08,239.1,239.04,2.0903]
[1733464034925,1.2324,239.13,238.99,1.289]
[1733464035131,2.08,239.16,239.01,9.06581103]
[1733464035735,9.06581103,239.17,239.01,9.06581103]
[1733464036028,2.0893,239.16,239.09,2.0898]
[1733464036830,2.0891,239.18,239.11,2.0897]
[1733464037731,9.06581103,239.23,239.1,6.30189193]
[1733464038032,2.7104,239.27,239.13,9.06581103]
[1733464038237,2.7104,239.27,239.14,1.2973]
[1733464038238,4.7987,239.27,239.14,1.2973]
[1733464038428,4.7987,239.27,239.15,2.08]
[1733464038429,2.7104,239.27,239.15,2.08]
[1733464039637,2.0885,239.25,239.15,6.24082027]
[1733464039935,2.7104,239.27,239.15,6.24082027]
[1733464040132,2.0886,239.24,239.15,6.24082027]
[1733464042133,9.06581103,239.26,239.14,1.2973]
[1733464042334,9.06581103,239.26,239.11,3.3898]
[1733464042633,9.06581103,239.26,239.11,5.48891283]
[1733464042827,9.06581103,239.22,239.08,9.06581103]
[1733464043029,9.06581103,239.22,239.07,3.4389]
[1733464043336,2.0892,239.17,239.07,3.4389]
[1733464043536,2.12,239.21,239.07,12.50471103]
[1733464043938,2.0892,239.17,239.07,12.50471103]
[1733464044133,2.12,239.21,239.07,3.4389]
[1733464044535,2.0892,239.17,239.07,3.4389]
[1733464044836,4.0079,239.27,239.06,1.3003]
[1733464044837,2.12,239.16,239.06,1.3003]
[1733464045536,2.0895,239.13,239.03,6.33101615]
[1733464045829,2.0895,239.13,239.03,2.12]
[1733464046031,2.12,239.16,239.04,4.11771649]
[1733464047038,2.12,239.16,239.04,9.06581103]
[1733464047236,2.12,239.16,239.04,13.20839953]
[1733464047540,4.209,239.2,239.08,9.06581103]
[1733464047734,4.209,239.2,239.09,2.12]
[1733464047939,4.209,239.2,239.09,6.23246971]
[1733464048137,2.12,239.2,239.09,2.12]
[1733464048338,2.089,239.19,239.09,2.12]
[1733464048737,2.089,239.19,239.09,6.20276924]
[1733464049041,2.089,239.19,239.09,2.12]
[1733464049241,2.12,239.2,239.09,2.12]
[1733464049443,2.0891,239.18,239.09,6.32888044]
[1733464049742,2.0891,239.18,239.09,2.12]
[1733464049936,2.0891,239.18,239.08,9.06581103]
[1733464050141,2.0891,239.18,239.09,2.12]
[1733464050839,2.12,239.2,239.09,2.12]
[1733464051040,9.06581103,239.15,239.02,1.2337]
[1733464051245,2.12,239.14,239.02,1.2337]
[1733464051943,2.0899,239.09,239.02,1.2337]
[1733464053643,1.3528,239.13,239.02,1.2337]
[1733464054742,2.09,239.08,239.02,1.2337]
[1733464054942,1.3528,239.13,239.02,1.2337]
[1733464055344,1.3528,239.13,239.03,4.24034194]
[1733464056241,2.0898,239.1,239.03,4.24034194]
[1733464057241,1.3648,239.14,239.02,10.29951103]
[1733464057643,9.06581103,239.18,239.02,10.29951103]
[1733464057942,11.18581103,239.18,239.03,2.12]
[1733464058144,11.18581103,239.18,239.03,6.36602754]
[1733464058740,9.06581103,239.13,239.03,6.36602754]
[1733464058940,11.18581103,239.13,239.03,6.36602754]
[1733464059639,11.18581103,239.13,239.02,1.2337]
[1733464059845,9.06581103,239.07,238.97,4.24967753]
[1733464060048,9.06581103,239.07,238.92,4.16036979]